bitfinex-derivatives/quotes_SOLF0:USTF0_20250516
["timestamp","ask_amount","ask_price","bid_price","bid_amount"]
[1747377458510,5.7957,172.51,172.47,5.7964]
[1747377458914,117.3,172.52,172.47,5.7964]
[1747377459412,5.7958,172.5,172.47,5.7964]
[1747377460815,5.7962,172.49,172.47,5.7964]
[1747377461419,64.5358,172.5,172.47,5.7964]
[1747377461613,64.5358,172.5,172.48,5.7963]
[1747377462208,64.5358,172.5,172.47,5.7966]
[1747377462412,5.7961,172.49,172.42,6.80859311]
[1747377462919,5.7961,172.49,172.46,5.7968]
[1747377463220,5.7965,172.48,172.42,6.80859311]
[1747377463523,58.74,172.5,172.44,5.7975]
[1747377463821,5.7967,172.48,172.44,5.7975]
[1747377464316,5.7967,172.48,172.41,5.8328]
[1747377464516,5.7967,172.48,172.45,5.7972]
[1747377465824,58.74,172.5,172.41,5.8328]
[1747377466026,58.5,172.52,172.42,6.80859311]
[1747377466218,58.74,172.54,172.45,6.80859311]
[1747377466417,123.2545,172.54,172.5,5.7954]
[1747377466725,123.2545,172.54,172.45,6.80859311]
[1747377467019,722.31781708,172.58,172.48,6.80859311]
[1747377467223,58.72,172.57,172.49,62.5692]
[1747377467619,64.5136,172.57,172.49,62.5692]
[1747377467822,221.67781708,172.58,172.49,62.5692]
[1747377468122,58.72,172.57,172.49,62.5692]
[1747377468318,58.72,172.57,172.49,64.4613]
[1747377469621,58.72,172.57,172.54,5.7942]
[1747377470122,64.5134,172.57,172.54,5.7942]
[1747377470811,58.72,172.57,172.49,64.4613]
[1747377471113,58.72,172.57,172.55,5.7939]
[1747377472023,58.72,172.57,172.54,5.7942]
[1747377472214,64.5134,172.57,172.54,5.7942]
[1747377472411,58.72,172.57,172.49,64.4613]
[1747377472722,58.72,172.57,172.49,3.8292]
[1747377472921,60.7043,172.57,172.46,58.72]
[1747377473114,60.7043,172.57,172.5,5.7955]
[1747377473824,60.7043,172.57,172.52,5.795]
[1747377474014,5.7937,172.56,172.46,58.72]
[1747377474215,60.7043,172.57,172.46,58.72]
[1747377474514,5.7942,172.55,172.46,58.72]
[1747377474719,5.7942,172.55,172.51,5.7951]
[1747377475022,5.7942,172.55,172.46,58.72]
[1747377477219,60.7043,172.57,172.46,58.72]
[1747377477623,5.7956,172.51,172.46,58.72]
[1747377477920,58.72,172.53,172.46,58.72]
[1747377478121,5.7951,172.52,172.49,5.7958]
[1747377478425,58.72,172.53,172.46,58.72]
[1747377479427,58.72,172.53,172.49,5.7958]
[1747377479825,64.515,172.53,172.49,5.7958]
[1747377480327,64.515,172.53,172.5,5.7956]
[1747377481526,5.795,172.52,172.49,5.7959]
[1747377482924,64.5148,172.53,172.5,5.7957]
[1747377483126,58.8,172.53,172.46,58.72]
[1747377483528,64.5947,172.53,172.5,5.7954]
[1747377483722,58.8,172.53,172.46,58.72]
[1747377483928,117.72,172.54,172.46,65.52859311]
[1747377485229,117.72,172.54,172.52,5.7948]
[1747377485429,58.96,172.55,172.46,65.52859311]
[1747377485830,5.7943,172.55,172.46,65.52859311]
[1747377486029,64.7543,172.55,172.46,65.52859311]
[1747377486629,64.7543,172.55,172.52,5.7948]
[1747377486824,58.96,172.55,172.46,65.52859311]
[1747377487025,58.72,172.56,172.47,58.92]
[1747377487226,117.64,172.56,172.47,58.92]
[1747377487426,117.64,172.56,172.49,6.80859311]
[1747377488125,58.9,172.57,172.5,58.72]
[1747377488530,5.7938,172.56,172.53,5.7947]
[1747377489425,5.7934,172.57,172.54,5.7943]
[1747377489627,58.9,172.56,172.54,5.7943]
[1747377490226,64.694,172.56,172.53,5.7945]
[1747377490430,58.9,172.56,172.47,65.72859311]
[1747377490830,5.7941,172.55,172.52,5.795]
[1747377491132,58.9,172.56,172.47,65.72859311]
[1747377491630,64.6938,172.56,172.53,5.7945]
[1747377491820,58.9,172.56,172.47,65.72859311]
[1747377492132,64.6937,172.56,172.53,5.7945]
[1747377493327,58.9,172.56,172.54,5.7943]
[1747377493533,58.9,172.56,172.47,65.70859311]
[1747377494232,162.93781708,172.58,172.5,6.80859311]
[1747377494428,58.88,172.6,172.53,6.80859311]
[1747377495635,58.88,172.6,172.58,5.7927]
[1747377495831,58.88,172.6,172.53,6.80859311]
[1747377496035,58.88,172.6,172.52,58.9]
[1747377496426,5.7931,172.58,172.55,5.794]
[1747377497138,5.7934,172.57,172.54,5.7942]
[1747377497436,58.88,172.6,172.52,58.9]
[1747377498326,58.88,172.6,172.52,60.8744]
[1747377498531,64.6725,172.6,172.52,60.8744]
[1747377498834,58.88,172.6,172.52,58.9]
[1747377499344,5.7931,172.58,172.52,58.9]
[1747377499542,58.88,172.6,172.52,58.9]
[1747377500444,58.88,172.6,172.55,5.7938]
[1747377500445,5.7931,172.58,172.55,5.7938]
[1747377500950,5.7931,172.58,172.56,5.7937]
[1747377501143,5.7928,172.59,172.56,5.7937]
[1747377501544,58.88,172.6,172.55,5.7939]
[1747377501751,58.88,172.6,172.52,58.9]
[1747377502147,58.88,172.6,172.54,5.7942]
[1747377502148,5.7936,172.57,172.54,5.7942]
[1747377502349,58.88,172.6,172.52,58.9]
[1747377503349,5.7927,172.59,172.56,5.7936]
[1747377503550,59.04,172.59,172.52,58.9]
[1747377503751,59.04,172.59,172.52,60.887]
[1747377504047,59.04,172.59,172.57,5.7931]
[1747377504243,59.04,172.59,172.52,60.887]
[1747377504449,59.04,172.59,172.57,5.7931]
[1747377505652,59.04,172.59,172.58,5.793]
[1747377506137,59.04,172.59,172.57,5.7933]
[1747377506749,58.9,172.61,172.52,60.887]
[1747377507047,117.96,172.61,172.52,60.887]
[1747377507249,117.96,172.61,172.59,5.7926]
[1747377509347,58.9,172.61,172.59,5.7926]
[1747377510655,58.9,172.61,172.6,5.7923]
[1747377510956,280.70555595,172.65,172.56,65.68859311]
[1747377511254,58.88,172.69,172.59,6.80859311]
[1747377511445,59.0,172.69,172.62,6.80859311]
[1747377511646,59.0,172.69,172.68,5.7897]
[1747377511949,59.0,172.69,172.62,6.80859311]
[1747377512349,58.88,172.72,172.62,6.80859311]
[1747377512550,59.04,172.7,172.62,6.80859311]
[1747377512756,1.8572,172.74,172.62,6.80859311]
[1747377513051,58.88,172.73,172.62,6.80859311]
[1747377513249,5.7885,172.72,172.67,5.7898]
[1747377513851,58.88,172.73,172.7,5.7887]
[1747377514050,117.88,172.73,172.7,5.7887]
[1747377514259,3.9157,172.79,172.65,67.75919311]
[1747377514459,5.7875,172.75,172.71,5.7886]
[1747377514957,5.7877,172.74,172.7,5.7889]
[1747377515158,117.88,172.78,172.68,58.88]
[1747377515456,5.7892,172.7,172.66,5.7901]
[1747377515760,59.0,172.72,172.65,119.8306]
[1747377516557,64.7884,172.72,172.68,5.7896]
[1747377516752,59.0,172.72,172.65,119.8306]
[1747377517054,59.0,172.72,172.69,5.7891]
[1747377517557,58.88,172.74,172.65,126.63919311]
[1747377517749,64.6677,172.74,172.65,126.63919311]
[1747377517952,5.7877,172.74,172.65,126.63919311]
[1747377518554,5.7881,172.73,172.65,126.63919311]
[1747377519554,5.7881,172.73,172.69,5.7892]
[1747377519851,58.86,172.73,172.65,67.63919311]
[1747377520158,58.86,172.73,172.66,5.79]
[1747377520459,5.7892,172.7,172.65,60.8306]
[1747377520853,5.7893,172.69,172.65,60.8306]
[1747377521052,59.0,172.71,172.62,65.78859311]
[1747377521559,5.7891,172.7,172.66,5.79]
[1747377521959,5.7891,172.7,172.62,65.78859311]
[1747377522559,59.0,172.71,172.62,65.78859311]
[1747377522858,59.0,172.71,172.68,5.7894]
[1747377523057,59.0,172.71,172.62,65.78859311]
[1747377523554,5.7895,172.69,172.65,5.7905]
[1747377524061,5.7895,172.69,172.66,5.7903]
[1747377524357,59.0,172.71,172.62,58.98]
[1747377524553,6.80859311,172.69,172.6,5.7921]
[1747377524752,5.7914,172.63,172.6,5.7921]
[1747377524952,58.94,172.64,172.56,58.98]
[1747377525149,58.94,172.64,172.6,5.7923]
[1747377525352,5.7916,172.63,172.6,5.7923]
[1747377525653,58.94,172.64,172.56,58.98]
[1747377526249,58.94,172.64,172.56,65.78859311]
[1747377526455,59.14,172.67,172.56,65.78859311]
[1747377526657,59.14,172.67,172.59,6.80859311]
[1747377526858,59.14,172.67,172.6,58.98]
[1747377527456,5.7897,172.68,172.6,58.98]
[1747377527658,64.9097,172.68,172.64,5.7908]
[1747377528356,59.1,172.68,172.65,5.7904]
[1747377528966,59.1,172.68,172.66,5.7903]
[1747377529464,59.1,172.68,172.6,58.98]
[1747377529665,59.1,172.68,172.65,5.7905]
[1747377529962,5.7898,172.68,172.6,58.98]
[1747377530163,64.8298,172.68,172.6,58.98]
[1747377530864,59.04,172.68,172.6,58.98]
[1747377531362,5.79,172.68,172.6,58.98]
[1747377531563,64.81,172.68,172.6,58.98]
[1747377532260,59.02,172.68,172.6,58.98]
[1747377532664,59.02,172.68,172.65,5.7905]
[1747377533166,59.02,172.68,172.6,58.98]
[1747377533864,59.02,172.68,172.65,5.7905]
[1747377534065,59.02,172.68,172.6,58.98]
[1747377534266,5.7901,172.67,172.63,5.7911]
[1747377534466,5.7901,172.67,172.6,58.98]
[1747377534661,59.02,172.68,172.6,58.98]
[1747377534865,59.02,172.68,172.62,5.7916]
[1747377535366,5.7905,172.66,172.62,5.7916]
[1747377535765,59.02,172.68,172.61,5.7919]
[1747377536269,59.02,172.68,172.6,5.7922]
[1747377536571,5.7912,172.64,172.57,58.98]
[1747377536770,58.94,172.63,172.61,5.7919]
[1747377537068,58.94,172.63,172.57,58.98]
[1747377537268,58.92,172.66,172.59,6.80859311]
[1747377538569,58.92,172.66,172.65,5.7907]
[1747377539174,58.92,172.66,172.59,65.74859311]
[1747377540273,58.92,172.66,172.63,5.7911]
[1747377540460,64.7104,172.66,172.59,65.74859311]
[1747377540666,58.92,172.66,172.59,65.74859311]
[1747377540865,58.92,172.66,172.57,58.98]
[1747377541062,5.7916,172.63,172.57,58.98]
[1747377541573,5.7916,172.63,172.6,5.7923]
[1747377541776,58.92,172.66,172.57,58.98]
[1747377542372,5.7917,172.63,172.57,58.98]
[1747377542573,58.92,172.66,172.57,58.98]
[1747377542776,5.7913,172.64,172.6,5.7922]
[1747377542962,58.92,172.66,172.6,5.7922]
[1747377543167,58.92,172.66,172.57,58.98]
[1747377543367,5.7919,172.62,172.57,58.98]
[1747377543874,5.7919,172.62,172.59,5.7925]
[1747377545181,5.7919,172.62,172.54,64.6288]
[1747377545182,58.84,172.62,172.54,64.6288]
[1747377545386,58.84,172.62,172.54,58.98]
[1747377545576,58.84,172.62,172.5,65.78859311]
[1747377545777,5.7936,172.57,172.54,5.7943]
[1747377546079,64.6536,172.57,172.54,5.7943]
[1747377546275,58.86,172.57,172.54,5.7943]
[1747377546580,58.86,172.57,172.55,5.7939]
[1747377547280,58.86,172.57,172.49,3.7085]
[1747377547782,5.7937,172.56,172.49,3.7085]
[1747377547983,58.86,172.57,172.49,3.7085]
[1747377548579,5.7941,172.55,172.52,5.7948]
[1747377549083,58.86,172.57,172.47,59.0]
[1747377549284,60.7495,172.57,172.47,59.0]
[1747377549983,5.7946,172.54,172.51,5.7953]
[1747377550190,58.88,172.53,172.51,5.7953]
[1747377550377,58.88,172.53,172.47,59.0]
[1747377550578,64.6747,172.53,172.5,5.7954]
[1747377551285,5.7951,172.52,172.49,5.796]
[1747377551982,117.72,172.53,172.44,62.7023]
[1747377552283,117.72,172.53,172.44,58.84]
[1747377552578,5.7956,172.51,172.44,58.84]
[1747377552783,117.72,172.53,172.44,58.84]
[1747377553787,5.7951,172.52,172.44,58.84]
[1747377554082,117.72,172.53,172.44,58.84]
[1747377554282,123.5149,172.53,172.49,5.7957]
[1747377554583,117.72,172.53,172.44,58.84]
[1747377555685,123.515,172.53,172.49,5.7958]
[1747377556784,5.7951,172.52,172.49,5.7958]
[1747377557386,5.7954,172.51,172.48,5.7962]
[1747377557588,117.72,172.53,172.44,58.84]
[1747377557784,117.72,172.53,172.41,145.69549311]
[1747377558485,117.72,172.53,172.41,69.45989311]
[1747377559290,5.7963,172.49,172.41,69.45989311]
[1747377559487,58.78,172.48,172.41,69.45989311]
[1747377559787,58.78,172.48,172.45,5.7972]
[1747377559984,58.78,172.48,172.41,69.45989311]
[1747377560392,58.78,172.48,172.45,5.7972]
[1747377560889,58.78,172.48,172.41,62.6513]
[1747377561888,58.86,172.49,172.41,69.45989311]
[1747377562193,58.74,172.51,172.44,6.80859311]
[1747377562496,58.74,172.51,172.49,5.7959]
[1747377562998,58.74,172.51,172.5,5.7957]
[1747377563495,58.86,172.53,172.51,5.7953]
[1747377563794,58.76,172.52,172.51,5.7953]
[1747377564700,58.76,172.52,172.5,5.7956]
[1747377564993,58.76,172.52,172.45,60.7258]
[1747377565499,58.76,172.52,172.51,5.7954]
[1747377565693,58.86,172.53,172.47,6.80859311]
[1747377565893,1.8968,172.59,172.48,3.8379]
[1747377566097,58.8,172.58,172.5,6.80859311]
[1747377567192,58.8,172.58,172.5,65.66859311]
[1747377568297,58.8,172.58,172.56,5.7935]
[1747377569007,58.8,172.58,172.57,5.7933]
[1747377569397,58.8,172.58,172.5,65.66859311]
[1747377569600,5.7921,172.61,172.5,65.66859311]
[1747377569800,58.8,172.59,172.5,65.66859311]
[1747377570604,64.5929,172.59,172.5,65.66859311]
[1747377570807,58.8,172.59,172.5,65.66859311]
[1747377571899,5.7933,172.58,172.5,65.66859311]
[1747377572102,58.8,172.57,172.5,65.66859311]
[1747377572609,58.8,172.57,172.5,6.80859311]
[1747377573408,58.8,172.57,172.55,5.7938]
[1747377573904,58.8,172.57,172.5,6.80859311]
[1747377574105,58.8,172.57,172.54,5.7942]
[1747377575003,58.8,172.57,172.55,5.794]
[1747377575208,162.8972021,172.62,172.53,65.66859311]
[1747377575409,58.76,172.61,172.53,65.66859311]
[1747377576007,221.7572021,172.62,172.53,65.66859311]
[1747377576206,117.64,172.62,172.53,65.66859311]
[1747377576502,58.78,172.62,172.56,6.80859311]
[1747377576803,64.6308,172.65,172.61,5.7918]
[1747377578308,64.6308,172.65,172.57,58.86]
[1747377578910,64.6308,172.65,172.61,5.7917]
[1747377579109,5.791,172.64,172.57,58.86]
[1747377579409,5.791,172.64,172.6,5.7921]
[1747377579810,5.791,172.64,172.57,58.86]
[1747377580011,58.84,172.65,172.58,5.7929]
[1747377580311,58.84,172.65,172.56,3.8616]
[1747377580510,5.7911,172.64,172.56,3.8616]
[1747377580713,58.84,172.65,172.56,3.8616]
[1747377581811,5.7914,172.63,172.56,3.8616]
[1747377582114,5.7914,172.63,172.59,5.7925]
[1747377582714,5.7914,172.63,172.6,5.7922]
[1747377582915,58.84,172.65,172.56,3.8616]
[1747377583312,5.791,172.64,172.61,5.7918]
[1747377584316,64.6308,172.65,172.62,5.7916]
[1747377584509,58.86,172.66,172.58,58.84]
[1747377584814,58.78,172.67,172.58,58.84]
[1747377585219,58.78,172.67,172.6,6.80859311]
[1747377585414,64.57,172.67,172.63,5.7911]
[1747377586412,5.7904,172.66,172.63,5.7911]
[1747377586714,58.78,172.67,172.63,5.7911]
[1747377586914,64.5702,172.67,172.63,5.7911]
[1747377587115,64.5702,172.67,172.64,5.7909]
[1747377587815,5.7902,172.67,172.63,5.7912]
[1747377588208,5.7904,172.66,172.63,5.7912]
[1747377588616,58.72,172.68,172.63,5.7912]
[1747377588816,5.7901,172.67,172.63,5.7912]
[1747377590217,5.7904,172.66,172.62,5.7915]
[1747377590415,5.7904,172.66,172.6,6.80859311]
[1747377590613,58.72,172.68,172.59,60.6296]
[1747377590916,5.7901,172.67,172.63,5.7911]
[1747377591115,5.7901,172.67,172.59,60.6296]
[1747377591418,5.7898,172.68,172.64,5.7908]
[1747377591613,1.8199,172.72,172.64,5.7908]
[1747377591814,117.44,172.71,172.64,5.7908]
[1747377592616,117.44,172.71,172.59,60.6296]
[1747377592811,1.8949,172.7,172.59,1.8896]
[1747377593112,8.70349311,172.7,172.59,1.8896]
[1747377593411,5.7909,172.65,172.61,5.7917]
[1747377593606,64.4109,172.65,172.61,5.7917]
[1747377593810,64.4109,172.65,172.62,5.7916]
[1747377594011,64.4109,172.65,172.59,1.8896]
[1747377594313,64.4109,172.65,172.61,5.7917]
[1747377594507,58.62,172.65,172.56,3.8616]
[1747377595106,5.791,172.64,172.56,3.8616]
[1747377596518,5.791,172.64,172.6,5.7921]
[1747377596918,64.4107,172.65,172.56,3.8616]
[1747377597118,58.62,172.65,172.62,5.7915]
[1747377597317,58.62,172.65,172.56,3.8616]
[1747377597519,64.4108,172.65,172.61,5.7918]
[1747377599013,64.4108,172.65,172.62,5.7916]
[1747377600022,58.62,172.65,172.62,5.7916]
[1747377600617,58.62,172.65,172.61,5.7919]
[1747377600923,58.62,172.65,172.56,3.8616]
[1747377601124,5.7919,172.62,172.59,5.7925]
[1747377601321,8.70349311,172.7,172.57,6.80859311]
[1747377601621,5.7901,172.67,172.64,5.7909]
[1747377601825,58.52,172.67,172.6,6.80859311]
[1747377602226,5.7905,172.66,172.62,5.7914]
[1747377602418,58.52,172.67,172.59,58.82]
[1747377603122,64.3103,172.67,172.64,5.7909]
[1747377603325,58.82,172.69,172.6,6.80859311]
[1747377603522,117.34,172.69,172.6,8.62259311]
[1747377604419,117.34,172.69,172.63,6.80859311]
[1747377604624,58.52,172.69,172.63,65.62859311]
[1747377604829,58.52,172.69,172.67,5.7899]
[1747377605120,58.52,172.69,172.63,65.62859311]
[1747377605326,58.52,172.69,172.64,5.7907]
[1747377605625,5.7899,172.68,172.63,58.82]
[1747377605817,60.6399,172.72,172.65,5.7905]
[1747377606027,5.79,172.67,172.63,58.82]
[1747377606226,58.52,172.71,172.63,58.82]
[1747377606524,58.52,172.71,172.65,5.7906]
[1747377606824,5.7899,172.68,172.65,5.7906]
[1747377607925,5.7899,172.68,172.66,5.7902]
[1747377608427,60.6399,172.72,172.63,58.82]
[1747377608626,58.52,172.71,172.63,65.62859311]
[1747377608922,58.52,172.71,172.69,5.789]
[1747377609121,58.82,172.72,172.63,65.62859311]
[1747377609321,58.82,172.75,172.64,3.8096]
[1747377609522,58.52,172.74,172.64,3.8096]
[1747377610022,5.7887,172.71,172.67,5.79]
[1747377610217,58.52,172.74,172.63,65.62859311]
[1747377610424,1.8813,172.73,172.63,65.62859311]
[1747377611226,5.7894,172.69,172.66,5.7901]
[1747377611426,64.4094,172.69,172.63,65.62859311]
[1747377611621,5.79,172.67,172.64,5.7908]
[1747377611830,58.62,172.69,172.64,5.7908]
[1747377612324,5.7904,172.66,172.64,5.7908]
[1747377612527,58.62,172.69,172.65,5.7906]
[1747377612733,5.7901,172.67,172.65,5.7906]
[1747377613326,5.7901,172.67,172.64,5.7909]
[1747377613527,5.7903,172.66,172.64,5.7909]
[1747377614930,5.7901,172.67,172.64,5.7909]
[1747377615129,5.7901,172.67,172.65,5.7907]
[1747377615322,5.7901,172.67,172.6,64.2436]
[1747377615523,5.7901,172.67,172.64,5.7908]
[1747377615723,5.7904,172.66,172.64,5.7908]
[1747377616026,5.7904,172.66,172.63,5.7912]
[1747377616432,5.7901,172.67,172.6,64.2436]
[1747377617232,5.7903,172.66,172.63,5.791]
[1747377620333,5.7901,172.67,172.64,5.7909]
[1747377620832,5.7901,172.67,172.6,64.2436]
[1747377620833,58.62,172.69,172.6,64.2436]
[1747377621633,5.7904,172.66,172.6,64.2436]
[1747377621832,58.62,172.69,172.6,64.2436]
[1747377622133,5.7901,172.67,172.6,64.2436]
[1747377622335,58.62,172.69,172.6,64.2436]
[1747377622830,5.7905,172.66,172.64,5.7909]
[1747377624737,5.7908,172.65,172.6,58.62]
[1747377625132,58.5,172.65,172.57,58.62]
[1747377625335,58.5,172.65,172.59,5.7925]
[1747377625729,5.7921,172.61,172.58,5.7929]
[1747377625938,58.5,172.61,172.54,58.62]
[1747377626333,5.7926,172.6,172.57,5.7932]
[1747377626640,58.5,172.61,172.54,58.62]
[1747377627140,5.7924,172.6,172.57,5.7931]
[1747377627641,5.7928,172.59,172.56,5.7936]
[1747377627840,58.5,172.61,172.54,58.62]
[1747377628040,58.5,172.61,172.51,65.42859311]
[1747377628341,58.5,172.61,172.46,184.30574058]
[1747377628342,65.30859311,172.61,172.46,184.30574058]
[1747377628841,5.7948,172.53,172.46,184.30574058]
[1747377629139,64.3348,172.53,172.49,5.7958]
[1747377630238,5.7954,172.51,172.46,184.30574058]
[1747377631040,5.7958,172.5,172.47,5.7965]
[1747377631440,58.54,172.53,172.46,184.30574058]
[1747377631640,64.3348,172.53,172.5,5.7957]
[1747377632238,58.54,172.53,172.51,5.7952]
[1747377632442,58.52,172.55,172.47,6.80859311]
[1747377632638,58.52,172.55,172.47,12.45889311]
[1747377632940,58.52,172.57,172.47,70.97889311]
[1747377634028,58.52,172.57,172.53,5.7944]
[1747377634233,64.3134,172.57,172.53,5.7944]
[1747377634533,58.52,172.57,172.5,58.64]
[1747377634728,64.3134,172.57,172.5,58.64]
[1747377635243,64.3134,172.57,172.52,5.7948]
[1747377635539,5.7938,172.56,172.52,5.7948]
[1747377636145,5.794,172.55,172.51,5.7952]
[1747377636439,58.52,172.57,172.5,58.64]
[1747377636640,58.52,172.57,172.47,129.61889311]
[1747377636828,58.52,172.57,172.51,5.7951]
[1747377637236,5.7943,172.55,172.51,5.7951]
[1747377637441,58.52,172.57,172.5,5.7956]
[1747377637643,58.52,172.57,172.47,64.2903]
[1747377637941,5.795,172.53,172.47,64.2903]
[1747377638143,64.335,172.53,172.5,5.7954]
[1747377639047,5.7951,172.52,172.49,5.7959]
[1747377639343,58.54,172.53,172.46,184.30574058]
[1747377639534,58.54,172.53,172.52,5.795]
[1747377639931,58.54,172.56,172.54,5.7942]
[1747377640443,58.54,172.56,172.55,5.794]
[1747377640640,58.54,172.56,172.48,58.64]
[1747377641241,58.54,172.56,172.5,6.80859311]
[1747377641645,58.54,172.56,172.55,5.794]
[1747377642747,58.54,172.56,172.5,6.80859311]
[1747377643042,58.54,172.56,172.48,58.64]
[1747377643239,122.8737,172.56,172.52,5.7947]
[1747377643641,122.8737,172.56,172.48,58.64]
[1747377644045,1.9371,172.6,172.48,58.64]
[1747377644242,117.08,172.59,172.5,6.80859311]
[1747377644943,117.08,172.59,172.56,5.7934]
[1747377645343,117.08,172.59,172.5,6.80859311]
[1747377646144,117.08,172.59,172.58,5.793]
[1747377646341,58.54,172.62,172.52,58.54]
[1747377646540,58.54,172.61,172.53,1.8082]
[1747377646943,58.54,172.61,172.53,8.61679311]
[1747377647847,58.54,172.61,172.53,1.8082]
[1747377648038,5.7932,172.58,172.54,5.7941]
[1747377648243,58.54,172.61,172.52,58.54]
[1747377648751,5.7929,172.59,172.55,5.7938]
[1747377649655,58.54,172.61,172.52,58.54]
[1747377650645,64.3321,172.61,172.58,5.793]
[1747377650851,500.44,172.63,172.53,8.71529311]
[1747377651054,58.54,172.62,172.56,6.80859311]
[1747377651349,117.08,172.64,172.57,1.8776]
[1747377651852,58.54,172.64,172.57,1.8776]
[1747377652050,117.08,172.64,172.57,1.8776]
[1747377652459,117.08,172.64,172.63,5.7913]
[1747377652754,58.54,172.64,172.63,5.7913]
[1747377653652,58.54,172.64,172.62,5.7915]
[1747377654054,58.54,172.64,172.57,1.8776]
[1747377654353,58.54,172.64,172.59,5.7926]
[1747377654856,58.54,172.64,172.58,5.7929]
[1747377655055,58.52,172.63,172.56,58.54]
[1747377655354,58.52,172.63,172.54,1.9146]
[1747377658351,64.3115,172.63,172.54,1.9146]
[1747377658565,58.52,172.63,172.54,1.9146]
[1747377658858,58.52,172.64,172.56,6.80859311]
[1747377659046,58.52,172.64,172.57,60.4171]
[1747377659250,58.52,172.64,172.62,5.7915]
[1747377660353,58.52,172.64,172.57,60.4171]
[1747377660656,58.52,172.64,172.57,1.8971]
[1747377661548,58.52,172.64,172.63,5.7913]
[1747377661851,58.52,172.64,172.57,1.8971]
[1747377662058,58.52,172.64,172.62,5.7915]
[1747377662261,58.52,172.64,172.57,1.8971]
[1747377662659,58.52,172.64,172.59,5.7924]
[1747377662861,5.7913,172.63,172.59,5.7924]
[1747377663162,58.52,172.64,172.59,5.7924]
[1747377663363,5.7919,172.62,172.59,5.7924]
[1747377664064,58.52,172.64,172.54,60.4346]
[1747377664761,58.52,172.64,172.58,5.793]
[1747377665064,5.7918,172.62,172.59,5.7925]
[1747377665259,58.52,172.62,172.54,60.4346]
[1747377666162,5.7922,172.61,172.54,60.4346]
[1747377666464,58.62,172.6,172.54,60.4346]
[1747377666654,5.791,172.64,172.61,5.7917]
[1747377666858,58.64,172.63,172.54,60.4346]
[1747377667465,58.64,172.63,172.56,6.80859311]
[1747377668159,58.64,172.63,172.54,119.0946]
[1747377668363,5.7918,172.62,172.59,5.7925]
[1747377668658,58.64,172.63,172.54,119.0946]
[1747377668861,58.64,172.63,172.61,5.7917]
[1747377669163,117.14,172.64,172.56,6.80859311]
[1747377671063,5.7916,172.63,172.59,5.7925]
[1747377671258,117.14,172.64,172.56,6.80859311]
[1747377671571,117.14,172.64,172.59,5.7924]
[1747377671758,117.14,172.64,172.54,119.0946]
[1747377672167,5.7914,172.63,172.6,5.7923]
[1747377673069,58.52,172.64,172.61,5.7917]
[1747377673267,58.6,172.63,172.54,119.0946]
[1747377673768,58.6,172.63,172.61,5.7917]
[1747377673966,58.6,172.63,172.56,6.80859311]